[Event "DVM U12W 2021"]
[Site "Willingen"]
[Date "2022.08.13"]
[Round "1"]
[White "Gerlach, Lorena"]
[Black "Mersmann, Jasmin"]
[Result "0-1"]
[ECO "D77"]
[WhiteElo "1120"]
[BlackElo "1232"]
[Annotator "NA RC COMBH"]
[PlyCount "94"]
[EventDate "2022.08.12"]
[EventType "team-tourn"]
[EventRounds "7"]
[EventCountry "GER"]
[SourceTitle "playchess.com"]
[Source "ChessBase"]
[SourceQuality "1"]
[TimeControl "40/5400+30:1800+30"]

1. d4 {[%emt 0:00:03]} d5 {[%emt 0:00:06]} 2. Nf3 {[%emt 0:00:06]} Nc6 {[%emt 0:00:16]} 3. g3 {[%emt 0:00:09]} Nf6 {[%emt 0:00:12]} 4. Bg2 {[%emt 0:00:09]} g6 {[%emt 0:00:08]} 5. O-O {[%emt 0:00:17]} Bg7 {[%emt 0:00:04]} 6. c4 {[%emt 0:00:31]} O-O {[%emt 0:01:18]} 7. Nc3 {[%emt 0:03:15]} Re8 {[%emt 0:01:38]} 8. Qb3 {[%emt 0:00:26]} Na5 {[%emt 0:01:12]} 9. Qb5 {[%emt 0:02:28]} Nxc4 {[%emt 0:02:19]} 10. Ne5 {[%emt 0:02:18]} Nb6 {[%emt 0:01:45]} 11. Bg5 {[%emt 0:01:55]} c6 {[%emt 0:01:24]} 12. Qb4 {[%emt 0:02:39]} Bf5 {[%emt 0:01:19]} 13. Rfe1 {[%emt 0:03:30]} Nfd7 {[%emt 0:03:32]} 14. Nxd7 {[%emt 0:02:17]} Qxd7 {[%emt 0:00:16]} 15. e4 {[%emt 0:00:10]} Be6 {[%emt 0:01:47]} 16. e5 {[%emt 0:02:51]} Nc4 {[%emt 0:03:02]} 17. b3 {[%emt 0:01:24]} a5 {[%emt 0:03:53]} 18. Qxe7 {[%emt 0:16:07]} Rxe7 {[%emt 0:00:11]} 19. Bxe7 {[%emt 0:00:07]} Qxe7 {[%emt 0:00:21]} 20. bxc4 {[%emt 0:00:09]} dxc4 {[%emt 0:00:18]} 21. Ne4 {[%emt 0:04:58]} Bd5 {[%emt 0:01:11]} 22. Nd6 {[%emt 0:09:58]} b5 {[%emt 0:00:42]} 23. Bxd5 {[%emt 0:02:38]} cxd5 {[%emt 0:00:09]} 24. Nxb5 {[%emt 0:00:07]} Qb4 {[%emt 0:00:38]} 25. Rab1 {[%emt 0:01:03]} Qa4 {[%emt 0:02:56]} 26. Nc3 {[%emt 0:01:34]} Qa3 {[%emt 0:00:27]} 27. Nxd5 {[%emt 0:01:26]} Qxa2 {[%emt 0:00:23]} 28. Ra1 {[%emt 0:04:24]} Qd2 {[%emt 0:01:23]} 29. Red1 {[%emt 0:00:35]} Qe2 {[%emt 0:01:26]} 30. Rac1 {[%emt 0:02:50]} a4 {[%emt 0:00:09]} 31. Nf4 {[%emt 0:03:25]} Qf3 {[%emt 0:00:42]} 32. Re1 {[%emt 0:01:22]} c3 {[%emt 0:00:34]} 33. Re3 {[%emt 0:00:22]} Qb7 {[%emt 0:01:49]} 34. Rcxc3 {[%emt 0:01:08]} Rc8 {[%emt 0:00:33]} 35. Rxc8+ {[%emt 0:02:28]} Qxc8 {[%emt 0:00:13]} 36. h4 {[%emt 0:06:31]} Qc1+ {[%emt 0:02:01]} 37. Kg2 {[%emt 0:00:12]} a3 {[%emt 0:00:14]} 38. Nd3 {[%emt 0:00:22]} Qb1 {[%emt 0:00:36]} 39. d5 {[%emt 0:04:06]} a2 {[%emt 0:01:09]} 40. d6 {[%emt 0:00:56]} a1=Q {[%emt 0:01:36]} 41. Re1 {[%emt 0:30:28]} Qa8+ {[%emt 0:30:06]} 42. Kh3 {[%emt 0:00:18]} Qxd3 {[%emt 0:00:10]} 43. Kh2 {[%emt 0:01:24]} Qdf3 {[%emt 0:00:26]} 44. Rg1 {[%emt 0:00:14]} Qxf2+ {[%emt 0:00:18]} 45. Kh3 {[%emt 0:00:11]} Qc8+ {[%emt 0:00:34]} 46. g4 {[%emt 0:00:12]} Qc3+ {[%emt 0:00:11]} 47. Rg3 {[%emt 0:00:12]} Qcxg3# {[%emt 0:00:12]} 0-1

[Event "DVM U12W 2021"]
[Site "Willingen"]
[Date "2022.08.13"]
[Round "1"]
[White "Glotz, Diana"]
[Black "Fomenkova, Elina"]
[Result "*"]
[ECO "A25"]
[WhiteElo "1116"]
[BlackElo "1049"]
[Annotator "NA RC COMBH"]
[PlyCount "40"]
[EventDate "2022.08.12"]
[EventType "team-tourn"]
[EventRounds "7"]
[EventCountry "GER"]
[SourceTitle "playchess.com"]
[Source "ChessBase"]
[SourceQuality "1"]
[TimeControl "40/5400+30:1800+30"]

1. c4 {[%emt 0:00:05]} e5 {[%emt 0:00:00]} 2. Nc3 {[%emt 0:00:06]} Nc6 {[%emt 0:00:00]} 3. g3 {[%emt 0:00:08]} f5 {[%emt 0:00:10]} 4. Bg2 {[%emt 0:00:18]} Nf6 {[%emt 0:01:17]} 5. d3 {[%emt 0:00:15]} Bb4 {[%emt 0:01:19]} 6. Bd2 {[%emt 0:00:21]} O-O {[%emt 0:05:06]} 7. e3 {[%emt 0:01:01]} d6 {[%emt 0:01:03]} 8. Nge2 {[%emt 0:03:37]} Qe8 {[%emt 0:11:36]} 9. Qc2 {[%emt 0:02:30]} Kh8 {[%emt 0:01:02]} 10. O-O {[%emt 0:01:00]} Bxc3 {[%emt 0:00:14]} 11. Nxc3 {[%emt 0:01:38]} Qh5 {[%emt 0:01:47]} 12. Qd1 {[%emt 0:05:49]} Qh6 {[%emt 0:14:11]} 13. Nd5 {[%emt 0:03:23]} f4 {[%emt 0:07:38]} 14. exf4 {[%emt 0:05:52]} Ng4 {[%emt 0:08:39]} 15. h3 {[%emt 0:03:39]} Nf6 {[%emt 0:00:58]} 16. fxe5 {[%emt 0:00:27]} g5 {[%emt 0:01:18]} 17. exf6 {[%emt 0:02:25]} Bxh3 {[%emt 0:03:23]} 18. Bxg5 {[%emt 0:02:15]} Qxg5 {[%emt 0:00:35]} 19. Bxh3 {[%emt 0:01:54]} Ne5 {[%emt 0:01:16]} 20. Nxc7 {[%emt 0:04:33]} Qh6 *

[Event "DVM U12W 2021"]
[Site "Willingen"]
[Date "2022.08.13"]
[Round "1"]
[White "Berger, Jennifer"]
[Black "Brandt, Clara"]
[Result "1-0"]
[ECO "C02"]
[WhiteElo "1050"]
[BlackElo "1161"]
[Annotator "NA RC COMBH"]
[PlyCount "43"]
[EventDate "2022.08.12"]
[EventType "team-tourn"]
[EventRounds "7"]
[EventCountry "GER"]
[SourceTitle "playchess.com"]
[Source "ChessBase"]
[SourceQuality "1"]
[TimeControl "40/5400+30:1800+30"]

1. e4 {[%emt 0:00:08]} e6 {[%emt 0:00:00]} 2. d4 {[%emt 0:00:05]} d5 {[%emt 0:00:00]} 3. e5 {[%emt 0:00:08]} c5 {[%emt 0:00:00]} 4. Nf3 {[%emt 0:01:29]} Nc6 {[%emt 0:00:24]} 5. Be3 {[%emt 0:00:58]} cxd4 {[%emt 0:00:16]} 6. Bxd4 {[%emt 0:02:30]} Nxd4 {[%emt 0:00:30]} 7. Qxd4 {[%emt 0:03:04]} Qc7 {[%emt 0:02:20]} 8. Bb5+ {[%emt 0:02:28]} Bd7 {[%emt 0:00:10]} 9. Bxd7+ {[%emt 0:00:41]} Qxd7 {[%emt 0:00:21]} 10. O-O {[%emt 0:02:28]} Ne7 {[%emt 0:00:37]} 11. Re1 {[%emt 0:03:41]} Nf5 {[%emt 0:02:29]} 12. Qg4 {[%emt 0:04:57]} Rc8 {[%emt 0:00:04]} 13. Nc3 {[%emt 0:02:33]} d4 {[%emt 0:00:06]} 14. Rad1 {[%emt 0:09:12]} Rc4 {[%emt 0:01:20]} 15. Re4 {[%emt 0:08:23]} Bc5 {[%emt 0:03:32]} 16. Ne2 {[%emt 0:08:40]} h5 {[%emt 0:00:34]} 17. Qf4 {[%emt 0:01:33]} Rxc2 {[%emt 0:01:56]} 18. Nexd4 {[%emt 0:03:03]} Rxb2 {[%emt 0:00:51]} 19. Qc1 {[%emt 0:06:06]} Bxd4 {[%emt 0:00:19]} 20. Nxd4 {[%emt 0:11:24]} Rxa2 {[%emt 0:01:27]} 21. Nxf5 {[%emt 0:06:15]} Qc6 {[%emt 0:00:58]} 22. Red4 1-0

[Event "DVM U12W 2021"]
[Site "Willingen"]
[Date "2022.08.13"]
[Round "1"]
[White "Fruth, Julia"]
[Black "Engeln, Helene"]
[Result "1-0"]
[ECO "C53"]
[WhiteElo "1037"]
[BlackElo "956"]
[Annotator "NA RC COMBH"]
[PlyCount "43"]
[EventDate "2022.08.12"]
[EventType "team-tourn"]
[EventRounds "7"]
[EventCountry "GER"]
[SourceTitle "playchess.com"]
[Source "ChessBase"]
[SourceQuality "1"]
[TimeControl "40/5400+30:1800+30"]

1. e4 {[%emt 0:00:01]} e5 {[%emt 0:00:08]} 2. Nf3 {[%emt 0:00:13]} Nc6 {[%emt 0:00:00]} 3. d4 {[%emt 0:00:44]} exd4 {[%emt 0:00:58]} 4. Bc4 {[%emt 0:02:05]} Bc5 {[%emt 0:01:10]} 5. c3 {[%emt 0:00:12]} Qe7 {[%emt 0:01:16]} 6. Qe2 {[%emt 0:04:26]} Nf6 {[%emt 0:02:41]} 7. Nbd2 {[%emt 0:02:46]} O-O {[%emt 0:04:06]} 8. O-O {[%emt 0:05:49]} Ne5 {[%emt 0:02:45]} 9. Nxe5 {[%emt 0:05:47]} Qxe5 {[%emt 0:00:08]} 10. Re1 {[%emt 0:02:33]} Bd6 {[%emt 0:00:37]} 11. Nf3 {[%emt 0:06:08]} Qh5 {[%emt 0:00:27]} 12. e5 {[%emt 0:01:39]} Re8 {[%emt 0:00:37]} 13. cxd4 {[%emt 0:04:38]} Bb4 {[%emt 0:01:14]} 14. Bd2 {[%emt 0:02:42]} Bxd2 {[%emt 0:00:59]} 15. Qxd2 {[%emt 0:00:20]} Ng4 {[%emt 0:01:18]} 16. h3 {[%emt 0:02:59]} Nh6 {[%emt 0:05:26]} 17. Ng5 {[%emt 0:06:52]} d6 {[%emt 0:02:26]} 18. exd6 {[%emt 0:01:06]} Rxe1+ {[%emt 0:06:40]} 19. Rxe1 {[%emt 0:00:10]} Be6 {[%emt 0:00:28]} 20. Nxe6 {[%emt 0:01:53]} fxe6 {[%emt 0:00:19]} 21. Bxe6+ {[%emt 0:00:15]} Nf7 {[%emt 0:00:21]} 22. dxc7 {[%emt 0:00:48]} 1-0

[Event "DVM U12W 2021"]
[Site "Willingen"]
[Date "2022.08.13"]
[Round "1"]
[White "Yan, Jenny"]
[Black "Eger, Nora"]
[Result "0-1"]
[ECO "E72"]
[WhiteElo "984"]
[BlackElo "1248"]
[Annotator "NA RC COMBH"]
[PlyCount "64"]
[EventDate "2022.08.12"]
[EventType "team-tourn"]
[EventRounds "7"]
[EventCountry "GER"]
[SourceTitle "playchess.com"]
[Source "ChessBase"]
[SourceQuality "1"]
[TimeControl "40/5400+30:1800+30"]

1. d4 {[%emt 0:00:03]} Nf6 {[%emt 0:00:11]} 2. c4 {[%emt 0:00:20]} d6 {[%emt 0:00:24]} 3. Nc3 {[%emt 0:00:22]} g6 {[%emt 0:00:16]} 4. g3 {[%emt 0:00:19]} Bg7 {[%emt 0:00:33]} 5. Bg2 {[%emt 0:00:11]} O-O {[%emt 0:00:59]} 6. e4 {[%emt 0:01:21]} e5 {[%emt 0:01:03]} 7. d5 {[%emt 0:01:30]} Nbd7 {[%emt 0:02:48]} 8. Nge2 {[%emt 0:02:29]} Nb6 {[%emt 0:08:36]} 9. b3 {[%emt 0:03:32]} Bg4 {[%emt 0:03:01]} 10. O-O {[%emt 0:04:29]} Qc8 {[%emt 0:03:59]} 11. Bb2 {[%emt 0:04:33]} Bh3 {[%emt 0:02:41]} 12. Qd2 {[%emt 0:03:32]} Bxg2 {[%emt 0:02:37]} 13. Kxg2 {[%emt 0:00:14]} Nbd7 {[%emt 0:02:59]} 14. Rh1 {[%emt 0:05:00]} Nc5 {[%emt 0:04:11]} 15. Qc2 {[%emt 0:04:52]} Qd8 {[%emt 0:04:14]} 16. Raf1 {[%emt 0:03:41]} Ng4 {[%emt 0:08:31]} 17. h3 {[%emt 0:03:17]} Nf6 {[%emt 0:04:19]} 18. f4 {[%emt 0:04:01]} Qe7 {[%emt 0:10:20]} 19. f5 {[%emt 0:06:34]} Nh5 {[%emt 0:09:33]} 20. fxg6 {[%emt 0:04:19]} fxg6 {[%emt 0:00:49]} 21. Rxf8+ {[%emt 0:01:31]} Rxf8 {[%emt 0:00:30]} 22. Rf1 {[%emt 0:01:48]} Rxf1 {[%emt 0:04:46]} 23. Kxf1 {[%emt 0:00:09]} Qg5 {[%emt 0:01:55]} 24. Kg2 {[%emt 0:04:16]} Nf4+ {[%emt 0:03:22]} 25. Nxf4 {[%emt 0:00:44]} exf4 {[%emt 0:00:40]} 26. Qf2 {[%emt 0:00:58]} Nd3 {[%emt 0:00:53]} 27. h4 {[%emt 0:02:56]} Qg4 {[%emt 0:01:18]} 28. Qd2 {[%emt 0:02:27]} Qxg3+ {[%emt 0:01:28]} 29. Kf1 {[%emt 0:00:28]} Qf3+ {[%emt 0:02:16]} 30. Kg1 {[%emt 0:00:35]} Bd4+ {[%emt 0:00:22]} 31. Kh2 {[%emt 0:01:30]} Qg3+ {[%emt 0:00:48]} 32. Kh1 {[%emt 0:00:09]} Qg1# {[%emt 0:00:25]} 0-1

[Event "DVM U12W 2021"]
[Site "Willingen"]
[Date "2022.08.13"]
[Round "1"]
[White "Xiao, Karoline"]
[Black "Shynkar, Darya"]
[Result "0-1"]
[ECO "B13"]
[WhiteElo "965"]
[BlackElo "1001"]
[Annotator "NA RC COMBH"]
[PlyCount "74"]
[EventDate "2022.08.12"]
[EventType "team-tourn"]
[EventRounds "7"]
[EventCountry "GER"]
[SourceTitle "playchess.com"]
[Source "ChessBase"]
[SourceQuality "1"]
[TimeControl "40/5400+30:1800+30"]

1. d4 {[%emt 0:00:01]} Nf6 {[%emt 0:00:00]} 2. Bf4 {[%emt 0:00:06]} e6 {[%emt 0:00:03]} 3. Nf3 {[%emt 0:00:23]} d5 {[%emt 0:00:24]} 4. e3 {[%emt 0:00:10]} c5 {[%emt 0:00:37]} 5. c3 {[%emt 0:00:19]} Nc6 {[%emt 0:00:41]} 6. Nbd2 {[%emt 0:00:32]} cxd4 {[%emt 0:01:00]} 7. exd4 {[%emt 0:01:32]} Bd6 {[%emt 0:00:41]} 8. Bg3 {[%emt 0:00:39]} O-O {[%emt 0:00:22]} 9. Bd3 {[%emt 0:01:27]} Re8 {[%emt 0:00:30]} 10. O-O {[%emt 0:03:25]} a6 {[%emt 0:02:48]} 11. Ne5 {[%emt 0:06:47]} Rb8 {[%emt 0:09:05]} 12. Qc2 {[%emt 0:01:13]} h6 {[%emt 0:01:00]} 13. Ndf3 {[%emt 0:01:58]} Bd7 {[%emt 0:03:50]} 14. Bh4 {[%emt 0:04:02]} Be7 {[%emt 0:05:08]} 15. Rae1 {[%emt 0:00:24]} Rc8 {[%emt 0:11:04]} 16. Bxf6 {[%emt 0:01:56]} Bxf6 {[%emt 0:01:03]} 17. Bh7+ {[%emt 0:00:26]} Kf8 {[%emt 0:05:16]} 18. Re3 {[%emt 0:04:47]} Qc7 {[%emt 0:03:51]} 19. Rfe1 {[%emt 0:06:25]} b5 {[%emt 0:02:06]} 20. h3 {[%emt 0:04:06]} Bxe5 {[%emt 0:03:55]} 21. Nxe5 {[%emt 0:01:35]} Nxd4 {[%emt 0:02:18]} 22. Qd3 {[%emt 0:02:15]} Nf5 {[%emt 0:01:34]} 23. Rf3 {[%emt 0:03:01]} Re7 {[%emt 0:04:15]} 24. g4 {[%emt 0:01:13]} Nd6 {[%emt 0:04:41]} 25. Ng6+ {[%emt 0:01:29]} Ke8 {[%emt 0:01:24]} 26. Nxe7 {[%emt 0:00:04]} Kxe7 {[%emt 0:02:30]} 27. Qd4 {[%emt 0:01:21]} f6 {[%emt 0:05:21]} 28. Qd3 {[%emt 0:01:45]} Be8 {[%emt 0:01:33]} 29. Qe2 {[%emt 0:01:44]} Qd7 {[%emt 0:02:25]} 30. h4 {[%emt 0:01:12]} Nc4 {[%emt 0:02:00]} 31. g5 {[%emt 0:00:54]} Bh5 {[%emt 0:04:47]} 32. Bf5 {[%emt 0:00:17]} Ne5 {[%emt 0:02:31]} 33. Bh3 {[%emt 0:00:16]} Nxf3+ {[%emt 0:00:41]} 34. Kh1 {[%emt 0:01:50]} Nxe1 {[%emt 0:00:11]} 35. Qxe1 {[%emt 0:01:28]} hxg5 {[%emt 0:01:09]} 36. hxg5 {[%emt 0:00:47]} Bf3+ {[%emt 0:00:21]} 37. Kg1 {[%emt 0:00:20]} Rh8 0-1

[Event "DVM U12W 2021"]
[Site "Willingen"]
[Date "2022.08.13"]
[Round "1"]
[White "Marrufo, Adriana"]
[Black "Mauhs, Helena"]
[Result "0-1"]
[ECO "C50"]
[WhiteElo "942"]
[BlackElo "857"]
[Annotator "NA RC COMBH"]
[PlyCount "108"]
[EventDate "2022.08.12"]
[EventType "team-tourn"]
[EventRounds "7"]
[EventCountry "GER"]
[SourceTitle "playchess.com"]
[Source "ChessBase"]
[SourceQuality "1"]
[TimeControl "40/5400+30:1800+30"]

1. e4 {[%emt 0:00:03]} e5 {[%emt 0:00:09]} 2. Nf3 {[%emt 0:00:21]} Nc6 {[%emt 0:00:12]} 3. Bc4 {[%emt 0:00:16]} Bc5 {[%emt 0:00:15]} 4. Nc3 {[%emt 0:00:20]} Nf6 {[%emt 0:00:13]} 5. d3 {[%emt 0:00:18]} h6 {[%emt 0:00:18]} 6. Be3 {[%emt 0:00:34]} d6 {[%emt 0:00:16]} 7. h3 {[%emt 0:01:22]} O-O {[%emt 0:00:38]} 8. g4 {[%emt 0:00:31]} Re8 {[%emt 0:00:26]} 9. g5 {[%emt 0:00:19]} hxg5 {[%emt 0:06:00]} 10. Bxg5 {[%emt 0:00:34]} Be6 {[%emt 0:01:17]} 11. Bb3 {[%emt 0:01:19]} Qe7 {[%emt 0:01:52]} 12. Ne2 {[%emt 0:00:51]} Bxb3 {[%emt 0:00:47]} 13. axb3 {[%emt 0:00:44]} Qe6 {[%emt 0:03:06]} 14. Rg1 {[%emt 0:01:18]} Rad8 {[%emt 0:00:46]} 15. Nc3 {[%emt 0:04:28]} Rd7 {[%emt 0:00:58]} 16. Qe2 {[%emt 0:01:25]} Nh5 {[%emt 0:01:37]} 17. Nxe5 {[%emt 0:01:37]} Qxe5 {[%emt 0:02:12]} 18. Qxh5 {[%emt 0:01:20]} Qh2 {[%emt 0:01:01]} 19. O-O-O {[%emt 0:03:00]} Bxf2 {[%emt 0:00:46]} 20. Qg4 {[%emt 0:01:25]} Ne5 {[%emt 0:01:31]} 21. Qg2 {[%emt 0:01:43]} Bxg1 {[%emt 0:02:03]} 22. Rxg1 {[%emt 0:03:10]} Qxg2 {[%emt 0:00:33]} 23. Rxg2 {[%emt 0:01:05]} Re6 {[%emt 0:00:32]} 24. h4 {[%emt 0:01:53]} Rg6 {[%emt 0:00:34]} 25. h5 {[%emt 0:00:28]} Re6 {[%emt 0:00:36]} 26. h6 {[%emt 0:00:24]} Rg6 {[%emt 0:00:28]} 27. Nd5 {[%emt 0:02:06]} f6 {[%emt 0:01:16]} 28. Nxf6+ {[%emt 0:11:24]} gxf6 {[%emt 0:00:51]} 29. Rh2 {[%emt 0:01:14]} Rxg5 {[%emt 0:01:48]} 30. d4 {[%emt 0:00:44]} Ng4 {[%emt 0:00:28]} 31. h7+ {[%emt 0:01:27]} Kh8 {[%emt 0:00:33]} 32. Rh1 {[%emt 0:01:21]} Rxh7 {[%emt 0:00:16]} 33. Rg1 {[%emt 0:00:13]} Rh2 {[%emt 0:00:32]} 34. c3 {[%emt 0:00:17]} f5 {[%emt 0:00:25]} 35. exf5 {[%emt 0:00:48]} Rxf5 {[%emt 0:00:13]} 36. Kb1 {[%emt 0:00:19]} Ne3 {[%emt 0:00:22]} 37. Re1 {[%emt 0:00:33]} Rff2 {[%emt 0:01:22]} 38. Rxe3 {[%emt 0:00:51]} Rxb2+ {[%emt 0:00:11]} 39. Kc1 {[%emt 0:00:29]} Rhc2+ {[%emt 0:00:21]} 40. Kd1 {[%emt 0:00:14]} Rh2 {[%emt 0:00:08]} 41. Re8+ {[%emt 0:30:32]} Kg7 {[%emt 0:30:10]} 42. Re7+ {[%emt 0:00:28]} Kf6 {[%emt 0:00:11]} 43. Kc1 {[%emt 0:01:32]} Rbg2 {[%emt 0:00:09]} 44. Re1 {[%emt 0:00:23]} Rc2+ {[%emt 0:00:08]} 45. Kb1 {[%emt 0:00:51]} Rb2+ {[%emt 0:00:19]} 46. Ka1 {[%emt 0:01:06]} Rbd2 {[%emt 0:00:10]} 47. Kb1 {[%emt 0:01:11]} Ra2 {[%emt 0:00:52]} 48. Rf1+ {[%emt 0:00:35]} Ke6 {[%emt 0:00:11]} 49. Re1+ {[%emt 0:00:27]} Kd5 {[%emt 0:00:28]} 50. c4+ {[%emt 0:00:16]} Kxd4 {[%emt 0:00:11]} 51. Rd1+ {[%emt 0:00:12]} Kc3 {[%emt 0:00:15]} 52. Rc1+ {[%emt 0:00:20]} Kxb3 {[%emt 0:00:18]} 53. Rd1 {[%emt 0:06:44]} Rhb2+ {[%emt 0:00:15]} 54. Kc1 {[%emt 0:01:00]} Ra1# {[%emt 0:00:07]} 0-1

[Event "DVM U12W 2021"]
[Site "Willingen"]
[Date "2022.08.13"]
[Round "1"]
[White "Ramien, Eva"]
[Black "Doberchak, Emily Alice"]
[Result "1-0"]
[ECO "C57"]
[WhiteElo "929"]
[BlackElo "928"]
[Annotator "NA RC COMBH"]
[PlyCount "93"]
[EventDate "2022.08.12"]
[EventType "team-tourn"]
[EventRounds "7"]
[EventCountry "GER"]
[SourceTitle "playchess.com"]
[Source "ChessBase"]
[SourceQuality "1"]
[TimeControl "40/5400+30:1800+30"]

1. e4 {[%emt 0:00:04]} e5 {[%emt 0:00:07]} 2. Nf3 {[%emt 0:00:10]} Nc6 {[%emt 0:00:08]} 3. Bc4 {[%emt 0:00:13]} Nf6 {[%emt 0:00:16]} 4. Ng5 {[%emt 0:00:54]} d5 {[%emt 0:00:14]} 5. Bxd5 {[%emt 0:00:15]} Nxd5 {[%emt 0:00:18]} 6. Nxf7 {[%emt 0:00:29]} Kxf7 {[%emt 0:00:22]} 7. Qf3+ {[%emt 0:00:25]} Ke8 {[%emt 0:00:24]} 8. exd5 {[%emt 0:00:21]} Nd4 {[%emt 0:00:21]} 9. Qd1 {[%emt 0:00:35]} Bc5 {[%emt 0:00:28]} 10. c3 {[%emt 0:00:53]} Nb5 {[%emt 0:00:11]} 11. O-O {[%emt 0:00:12]} Nd6 {[%emt 0:00:17]} 12. Qh5+ {[%emt 0:00:41]} Nf7 {[%emt 0:00:18]} 13. Re1 {[%emt 0:02:02]} Kf8 {[%emt 0:00:18]} 14. Qd1 {[%emt 0:01:57]} Qf6 {[%emt 0:00:24]} 15. Rf1 {[%emt 0:00:16]} Bd6 {[%emt 0:00:23]} 16. d4 {[%emt 0:02:20]} exd4 {[%emt 0:00:17]} 17. cxd4 {[%emt 0:00:32]} Qg6 {[%emt 0:00:48]} 18. Kh1 {[%emt 0:00:27]} b6 {[%emt 0:00:49]} 19. Nc3 {[%emt 0:00:57]} Bb7 {[%emt 0:00:13]} 20. Be3 {[%emt 0:01:29]} c6 {[%emt 0:00:46]} 21. dxc6 {[%emt 0:01:32]} Bxc6 {[%emt 0:00:32]} 22. f3 {[%emt 0:00:14]} Qh5 {[%emt 0:00:28]} 23. h3 {[%emt 0:00:32]} Bb8 {[%emt 0:00:21]} 24. Rg1 {[%emt 0:00:18]} Qg6 {[%emt 0:00:40]} 25. d5 {[%emt 0:01:07]} Qd6 {[%emt 0:00:41]} 26. g3 {[%emt 0:01:05]} Bd7 {[%emt 0:00:18]} 27. Ne4 {[%emt 0:01:26]} Qg6 {[%emt 0:00:42]} 28. Qf1 {[%emt 0:00:38]} Qh5 {[%emt 0:00:58]} 29. Kh2 {[%emt 0:02:36]} Be5 {[%emt 0:01:09]} 30. f4 {[%emt 0:01:02]} Bxb2 {[%emt 0:00:49]} 31. Rb1 {[%emt 0:00:37]} Bf6 {[%emt 0:00:34]} 32. Rd1 {[%emt 0:01:46]} Rc8 {[%emt 0:00:31]} 33. g4 {[%emt 0:01:10]} Qg6 {[%emt 0:00:15]} 34. f5 {[%emt 0:00:31]} Bxf5 {[%emt 0:00:28]} 35. gxf5 {[%emt 0:00:30]} Qxf5 {[%emt 0:00:22]} 36. Qxf5 {[%emt 0:00:26]} Rc2+ {[%emt 0:00:37]} 37. Rg2 {[%emt 0:00:25]} Rc8 {[%emt 0:00:29]} 38. Qxc8+ {[%emt 0:00:11]} Bd8 {[%emt 0:01:27]} 39. Nd6 {[%emt 0:00:57]} Ke7 {[%emt 0:00:24]} 40. Nxf7 {[%emt 0:00:46]} Kxf7 {[%emt 0:00:18]} 41. Qd7+ {[%emt 0:30:17]} Be7 {[%emt 0:30:17]} 42. Bg5 {[%emt 0:00:31]} Re8 {[%emt 0:00:23]} 43. Re1 {[%emt 0:01:26]} h6 {[%emt 0:00:26]} 44. Rxe7+ {[%emt 0:00:27]} Rxe7 {[%emt 0:00:13]} 45. Qxe7+ {[%emt 0:00:14]} Kg8 {[%emt 0:00:28]} 46. Be3 {[%emt 0:00:06]} b5 {[%emt 0:00:19]} 47. Qxg7# {[%emt 0:00:12]} 1-0

[Event "DVM U12W 2021"]
[Site "Willingen"]
[Date "2022.08.13"]
[Round "1"]
[White "Bykov, Sophia"]
[Black "Achilles, Rosa"]
[Result "0-1"]
[ECO "C10"]
[WhiteElo "896"]
[BlackElo "1026"]
[Annotator "NA RC COMBH"]
[PlyCount "62"]
[EventDate "2022.08.12"]
[EventType "team-tourn"]
[EventRounds "7"]
[EventCountry "GER"]
[SourceTitle "playchess.com"]
[Source "ChessBase"]
[SourceQuality "1"]
[TimeControl "40/5400+30:1800+30"]

1. e4 {[%emt 0:00:12]} e6 {[%emt 0:00:00]} 2. Nc3 {[%emt 0:00:19]} d5 {[%emt 0:00:00]} 3. Nf3 {[%emt 0:00:36]} c5 {[%emt 0:00:17]} 4. exd5 {[%emt 0:00:18]} exd5 {[%emt 0:00:07]} 5. d4 {[%emt 0:00:35]} c4 {[%emt 0:00:18]} 6. b3 {[%emt 0:00:16]} Bb4 {[%emt 0:00:33]} 7. bxc4 {[%emt 0:00:15]} Bxc3+ {[%emt 0:00:07]} 8. Bd2 {[%emt 0:00:22]} Bxa1 {[%emt 0:00:13]} 9. Qxa1 {[%emt 0:00:56]} Ne7 {[%emt 0:00:16]} 10. Bg5 {[%emt 0:00:49]} Qd6 {[%emt 0:00:38]} 11. cxd5 {[%emt 0:01:01]} Nxd5 {[%emt 0:00:36]} 12. c4 Nb4 {[%emt 0:09:47]} 13. Bd3 {[%emt 0:02:27]} Nxd3+ {[%emt 0:00:00]} 14. Kf1 {[%emt 0:00:50]} O-O {[%emt 0:00:00]} 15. c5 {[%emt 0:00:26]} Qa6 {[%emt 0:00:00]} 16. Be7 {[%emt 0:00:18]} Re8 {[%emt 0:00:00]} 17. Bd6 {[%emt 0:00:31]} Bg4 {[%emt 0:00:00]} 18. h3 {[%emt 0:00:35]} Bxf3 {[%emt 0:00:00]} 19. Kg1 {[%emt 0:00:36]} Re1+ {[%emt 0:00:00]} 20. Kh2 Rxa1 {[%emt 0:07:12]} 21. Rxa1 {[%emt 0:01:36]} Bd5 {[%emt 0:00:00]} 22. Rd1 {[%emt 0:00:46]} Nc6 {[%emt 0:00:00]} 23. Rd2 {[%emt 0:00:37]} Bxa2 {[%emt 0:00:00]} 24. d5 {[%emt 0:00:25]} Ncb4 {[%emt 0:00:00]} 25. Re2 {[%emt 0:01:22]} Bxd5 {[%emt 0:00:00]} 26. Re3 {[%emt 0:00:46]} h6 {[%emt 0:00:00]} 27. Re7 {[%emt 0:00:51]} Qc6 {[%emt 0:00:00]} 28. h4 {[%emt 0:00:18]} Re8 {[%emt 0:00:44]} 29. Rxe8+ {[%emt 0:00:08]} Qxe8 {[%emt 0:01:27]} 30. f4 {[%emt 0:00:13]} Qe4 {[%emt 0:00:11]} 31. g3 Qg2# {[%emt 0:20:46]} 0-1

[Event "DVM U12W 2021"]
[Site "Willingen"]
[Date "2022.08.13"]
[Round "1"]
[White "Grey, Paula"]
[Black "Marrufo, Leandra"]
[Result "1-0"]
[ECO "C44"]
[WhiteElo "854"]
[BlackElo "701"]
[Annotator "NA RC COMBH"]
[PlyCount "37"]
[EventDate "2022.08.12"]
[EventType "team-tourn"]
[EventRounds "7"]
[EventCountry "GER"]
[SourceTitle "playchess.com"]
[Source "ChessBase"]
[SourceQuality "1"]
[TimeControl "40/5400+30:1800+30"]

1. e4 {[%emt 0:00:06]} e5 {[%emt 0:00:00]} 2. Nf3 {[%emt 0:00:11]} Nc6 {[%emt 0:00:12]} 3. c3 {[%emt 0:00:21]} d5 {[%emt 0:00:43]} 4. Qa4 {[%emt 0:00:21]} f6 {[%emt 0:01:04]} 5. Bb5 {[%emt 0:04:30]} Nge7 {[%emt 0:00:36]} 6. d4 {[%emt 0:09:21]} dxe4 {[%emt 0:03:12]} 7. Nfd2 {[%emt 0:11:48]} Bf5 {[%emt 0:01:58]} 8. dxe5 {[%emt 0:00:29]} fxe5 {[%emt 0:00:51]} 9. Nxe4 {[%emt 0:02:25]} a6 {[%emt 0:03:51]} 10. Bxc6+ {[%emt 0:00:15]} Nxc6 {[%emt 0:03:41]} 11. Qc2 {[%emt 0:05:24]} Qd5 {[%emt 0:02:06]} 12. f3 {[%emt 0:03:18]} Na5 {[%emt 0:04:02]} 13. Nd6+ {[%emt 0:00:48]} Bxd6 {[%emt 0:00:41]} 14. Qxf5 {[%emt 0:03:00]} Bc5 {[%emt 0:00:00]} 15. b4 {[%emt 0:00:00]} g6 {[%emt 0:04:30]} 16. Qg4 {[%emt 0:09:14]} Qd3 {[%emt 0:01:49]} 17. bxc5 {[%emt 0:03:07]} Qc2 {[%emt 0:01:39]} 18. Qe6+ {[%emt 0:00:51]} Kd8 19. Bg5# {[%emt 0:13:27]} 1-0